Workbook

Sheet Total
A2: Nº PRESUPUESTO: | C2: Nº BRIEFING | E2: CLIENTE: | G2: =TODAY() -> 2019-06-28 | H2: Validez: 30 días
A4: COSTES INTERNOS | B4: INTERNO | C4: VENTA | F4: Margen 3as | G4: Mínimo 15% | I4: ESTUDIOS
A5: Jefatura de Línea | B5: 55.19 | C5: 85 | F5: General | G5: 0.25 | I5: Descuento
A6: Jefatura de Proyectos | B6: 49.97 | C6: 65 | F6: Impresión | G6: 0.2308 | I6: Nº Investigadores
A7: Administración | B7: 49.29 | C7: 55 | F7: Acreditación | G7: 0.9233717 | I7: DURACIÓN
A8: Diseño y Maquetación | B8: 56.38 | C8: 80 | F8: tipo 4
A9: IT | B9: 47.22 | C9: 80 | F9: tipo 5
A10: Coordinación | B10: 63.44 | C10: 85 | F10: tipo 6
A11: Dirección | B11: 0 | C11: 150 | F11: tipo 7 | I11: IVA | J11: 0.21
A12: KAM | B12: 0 | C12: 80 | F12: tipo 8
A13: Marketing | B13: 0 | C13: 75 | F13: tipo 9
A15: È | B15: È | D15: È | P15: È | Q15: È | R15: È
F16: SERVICIOS INTERNOS SANED | L16: SERVICIOS DE TERCERAS PARTES
A17: DESCRIPCIÓN | B17: UDS | C17: PERFIL | D17: HORAS | E17: HORA/ HOMBRE | F17: COSTE HORA/HOMBRE | G17: TOTAL COSTE | H17: VALOR SANED | I17: TOTAL VALOR SANED | J17: PRECIO HORA/ HOMBRE | K17: GESTIÓN | L17: COSTE UNITARIO | M17: TOTAL COSTE | N17: PRECIO UNITARIO | O17: TOTAL | P17: PRECIO UNITARIO | Q17: TOTAL PROYECTO | R17: PRECIO ESPECIAL CLIENTE | S17: BENEFICIO | T17: MARGEN | U17: DTO APLICADO | V17: % DTO APLICADO | W17: BENEFICIO DESCUENTO | X17: MARGEN DESCUENTO
A18: DIAGNÓSTICO Y GESTIÓN INTEGRAL | G18: =SUM(G19:G21) -> 0 | K18: =SUM(K19:K21) -> 0 | M18: =SUM(M19:M21) -> 0 | O18: =SUM(O19:O21) -> 0 | Q18: =O18+K18 -> 0 | R18: =SUM(R19:R21) -> 0 | S18: =Q18-(M18+G18) -> 0 | T18: =IF(S18>0,S18/Q18,"-") -> - | U18: =+R18-Q18 -> 0 | V18: =IF(U18<0,1-(R18/Q18),"-") -> - | W18: =R18-(M18+G18) -> 0 | X18: =IF(R18>0,W18/R18,"-") -> -
D19: =E19 -> 0 | F19: =SUMIF($A$5:$A$13,C19,$B$5:$B$13) -> 0 | G19: =F19*E19 -> 0 | H19: 0 | I19: =+H19*B19 -> 0 | J19: =SUMIF($A$5:$A$13,C19,$C$5:$C$13) -> 0 | K19: =(E19*J19)+I19 -> 0 | M19: =L19*B19 -> 0 | N19: =L19/(1-$G$5) -> 0 | O19: =N19*B19 -> 0 | P19: =+N19+J19+H19 -> 0 | Q19: 0 | R19: =+Q19 -> 0 | S19: =R19-(M19+G19) -> 0 | T19: - | U19: =+R19-Q19 -> 0 | V19: =IF(U19<0,1-(R19/Q19),"-") -> - | W19: 0 | X19: =IF(W19>0,W19/R19,"-") -> -
D20: =E20 -> 0 | F20: =SUMIF($A$5:$A$13,C20,$B$5:$B$13) -> 0 | G20: =F20*E20 -> 0 | H20: 0 | I20: =+H20*B20 -> 0 | J20: =SUMIF($A$5:$A$13,C20,$C$5:$C$13) -> 0 | K20: =(E20*J20)+I20 -> 0 | M20: =L20*B20 -> 0 | N20: =L20/(1-$G$5) -> 0 | O20: =N20*B20 -> 0 | P20: =+N20+J20+H20 -> 0 | Q20: 0 | R20: =Q20 -> 0 | S20: =R20-(M20+G20) -> 0 | T20: - | U20: =+R20-Q20 -> 0 | V20: =IF(U20<0,1-(R20/Q20),"-") -> - | W20: 0 | X20: -
D21: =E21 -> 0 | F21: =SUMIF($A$5:$A$13,C21,$B$5:$B$13) -> 0 | G21: =F21*E21 -> 0 | H21: 0 | I21: =+H21*B21 -> 0 | J21: =SUMIF($A$5:$A$13,C21,$C$5:$C$13) -> 0 | K21: =(E21*J21)+I21 -> 0 | M21: =L21*B21 -> 0 | N21: =L21/(1-$G$5) -> 0 | O21: =N21*B21 -> 0 | P21: =+N21+J21+H21 -> 0 | Q21: 0 | R21: =+Q21 -> 0 | S21: =Q21-(M21+G21) -> 0 | T21: - | U21: 0 | V21: - | W21: 0 | X21: -
A22: SERVICIOS | G22: =+G23+G26 -> 333.130002 | K22: =+K23+K26 -> 433.329 | M22: =+M23+M26 -> 0 | O22: =+O23+O26 -> 0 | Q22: 433.329 | R22: =+R23+R26 -> 433.329 | S22: 100.198998 | T22: 0.2312307692 | U22: =+R22-Q22 -> 0 | V22: =IF(U22<0,1-(R22/Q22),"-") -> - | W22: 100.198998 | X22: 0.2312307692
A23: Subservicios | G23: =+G24+G25 -> 333.130002 | K23: =+K24+K25 -> 433.329 | M23: =+M24+M25 -> 0 | O23: =+O24+O25 -> 0 | Q23: 433.329 | R23: =+R24+R25 -> 433.329 | S23: 100.198998 | T23: 0.2312307692 | U23: 0 | V23: - | W23: 100.198998 | X23: 0.2312307692
B24: 1 | C24: Jefatura de Proyectos | E24: 6.6666 | F24: =SUMIF($A$5:$A$13,C24,$B$5:$B$13) -> 49.97 | G24: =F24*E24 -> 333.130002 | H24: 0 | I24: =+H24*B24 -> 0 | J24: =SUMIF($A$5:$A$13,C24,$C$5:$C$13) -> 65 | K24: =(E24*J24)+I24 -> 433.329 | M24: =L24*B24 -> 0 | N24: =L24/(1-$G$5) -> 0 | O24: =N24*B24 -> 0 | P24: =+N24+J24+H24 -> 65 | Q24: 433.329 | R24: =Q24 -> 433.329 | S24: 100.198998 | T24: 0.2312307692 | U24: 0 | V24: - | W24: 100.198998 | X24: 0.2312307692
F25: =SUMIF($A$5:$A$13,C25,$B$5:$B$13) -> 0 | G25: =F25*E25 -> 0 | H25: 0 | I25: =+H25*B25 -> 0 | J25: =SUMIF($A$5:$A$13,C25,$C$5:$C$13) -> 0 | K25: =(E25*J25)+I25 -> 0 | M25: =L25*B25 -> 0 | N25: =L25/(1-$G$5) -> 0 | O25: =N25*B25 -> 0 | P25: =+N25+J25+H25 -> 0 | Q25: 0 | R25: =Q25 -> 0 | S25: 0 | T25: - | U25: 0 | V25: - | W25: 0 | X25: -
G26: =+G27 -> 0 | K26: =+K27 -> 0 | M26: =+M27 -> 0 | O26: =+O27 -> 0 | Q26: 0 | R26: =+R27 -> 0 | S26: 0 | T26: - | U26: 0 | V26: - | W26: 0 | X26: -
F27: =SUMIF($A$5:$A$13,C27,$B$5:$B$13) -> 0 | G27: =F27*E27 -> 0 | H27: 0 | I27: =+H27*B27 -> 0 | J27: =SUMIF($A$5:$A$13,C27,$C$5:$C$13) -> 0 | K27: =(E27*J27)+I27 -> 0 | M27: =L27*B27 -> 0 | N27: =L27/(1-$G$5) -> 0 | O27: =N27*B27 -> 0 | P27: =+N27+J27+H27 -> 0 | Q27: 0 | R27: =Q27 -> 0 | S27: 0 | T27: - | U27: 0 | V27: - | W27: 0 | X27: -
A28: SERVICIOS 1 | G28: =SUM(G29:G31) -> 0 | K28: =SUM(K29:K31) -> 0 | M28: =SUM(M29:M31) -> 0 | O28: =SUM(O29:O31) -> 0 | Q28: 0 | R28: =SUM(R29:R31) -> 0 | S28: 0 | T28: - | U28: 0 | V28: - | W28: 0 | X28: -
F29: =SUMIF($A$5:$A$13,C29,$B$5:$B$13) -> 0 | G29: =F29*E29 -> 0 | H29: 0 | I29: =+H29*B29 -> 0 | J29: =SUMIF($A$5:$A$13,C29,$C$5:$C$13) -> 0 | K29: =(E29*J29)+I29 -> 0 | M29: =L29*B29 -> 0 | N29: =L29/(1-$G$5) -> 0 | O29: =N29*B29 -> 0 | P29: =+N29+J29+H29 -> 0 | Q29: 0 | R29: 0 | S29: 0 | T29: - | U29: 0 | V29: - | W29: 0 | X29: -
F30: =SUMIF($A$5:$A$13,C30,$B$5:$B$13) -> 0 | G30: =F30*E30 -> 0 | H30: 0 | I30: =+H30*B30 -> 0 | J30: =SUMIF($A$5:$A$13,C30,$C$5:$C$13) -> 0 | K30: =(E30*J30)+I30 -> 0 | M30: =L30*B30 -> 0 | N30: =L30/(1-$G$5) -> 0 | O30: =N30*B30 -> 0 | P30: =+N30+J30+H30 -> 0 | Q30: 0 | R30: 0 | S30: 0 | T30: - | U30: 0 | V30: - | W30: 0 | X30: -
F31: =SUMIF($A$5:$A$13,C31,$B$5:$B$13) -> 0 | G31: =F31*E31 -> 0 | H31: 0 | I31: =+H31*B31 -> 0 | J31: =SUMIF($A$5:$A$13,C31,$C$5:$C$13) -> 0 | K31: =(E31*J31)+I31 -> 0 | M31: =L31*B31 -> 0 | N31: =L31/(1-$G$7) -> 0 | O31: =N31*B31 -> 0 | P31: =+N31+J31+H31 -> 0 | Q31: 0 | R31: 0 | S31: 0 | T31: - | U31: 0 | V31: - | W31: 0 | X31: -
A32: TOTAL SERVICIOS | G32: =SUM(G18,G22,G28,G34) -> 333.130002 | K32: =+K28+K22+K18 -> 433.329 | M32: =SUM(M18,M22,M28) -> 0 | O32: =+O28+O22+O18 -> 0 | Q32: =+O32+K32 -> 433.329 | R32: =+R28+R22+R18 -> 433.329 | S32: =Q32-L47 -> 100.198998 | T32: =IF(S32>0,S32/Q32,"-") -> 0.2312307692 | U32: =+R32-Q32 -> 0 | V32: - | W32: =R32-L47 -> 100.198998 | X32: =IF(W32>0,W32/R32,"-") -> 0.2312307692
A34: HONORARIOS | M34: =SUM(M35:M39) -> 0 | O34: =SUM(O35:O38) -> 0 | Q34: =O34 -> 0 | R34: =SUM(R35:R38) -> 0 | S34: 0 | T34: - | U34: 0 | V34: - | W34: 0 | X34: -
A35: Autores | M35: =L35*B35 -> 0 | N35: =L35 -> 0 | O35: =M35 -> 0 | P35: =+N35 -> 0 | Q35: 0 | R35: 0 | S35: 0 | T35: - | U35: 0 | V35: - | W35: 0 | X35: -
A36: Coordinadores | M36: =L36*B36 -> 0 | N36: =L36 -> 0 | O36: =M36 -> 0 | P36: =+N36 -> 0 | Q36: =+O36 -> 0 | R36: =Q36 -> 0 | S36: =Q36-(M36+G36) -> 0 | T36: =IF(S36>0,S36/Q36,"-") -> - | U36: =+R36-Q36 -> 0 | V36: =IF(U36<0,1-(R36/Q36),"-") -> - | W36: =R36-(M36+G36) -> 0 | X36: =IF(R36>0,W36/R36,"-") -> -
A37: Aval Sociedad | M37: =L37*B37 -> 0 | N37: =L37 -> 0 | O37: 0 | P37: 0 | Q37: 0 | R37: 0 | S37: 0 | T37: - | U37: 0 | V37: - | W37: 0 | X37: =IF(R37>0,W37/R37,"-") -> -
A38: Becas | M38: =L38*B38 -> 0 | N38: =L38 -> 0 | O38: =M38 -> 0 | P38: =+N38 -> 0 | Q38: =+O38 -> 0 | R38: =Q38 -> 0 | S38: =Q38-(M38+G38) -> 0 | T38: =IF(S38>0,S38/Q38,"-") -> - | U38: =+R38-Q38 -> 0 | V38: =IF(U38<0,1-(R38/Q38),"-") -> - | W38: =R38-(M38+G38) -> 0 | X38: =IF(R38>0,W38/R38,"-") -> -
P40: TOTAL BRUTO | Q40: =+Q32+Q34 -> 433.329 | R40: =+R32+R34 -> 433.329 | S40: =Q40-(L46+L45) -> 100.198998 | T40: =IF(S40>0,S40/Q40,"-") -> 0.2312307692 | U40: =+R40-Q40 -> 0 | V40: - | W40: =R40-(L45+L46) -> 100.198998 | X40: =IF(W40>0,W40/R40,"-") -> 0.2312307692
P41: IVA | Q41: =+Q40*J11 -> 90.99909 | R41: =+R40*J11 -> 90.99909
P42: Total Presupuesto | Q42: =+Q40+Q41 -> 524.32809 | R42: =+R40+R41 -> 524.32809
A45: A tener en cuenta: | D45: Cálculo horas corrección y edición | G45: Cálculo Diseño y Maquetación | K45: COSTE INTERNO | L45: =+G32 -> 333.130002
A46: Secretaría técnica | B46: 4,5h/mes | D46: Nº págs | E46: Horas | G46: Nº págs | H46: EUROS | K46: COSTE EXTERNO | L46: =+M34+M32 -> 0
A47: Acreditación jefa proyecto | B47: 6h | D47: 40 | E47: =+(D47*5)/60*2 -> 6.666666667 | G47: 0 | H47: =+(G47*8)+250 -> 250 | K47: TOTAL COSTE (SIN HONORARIOS) | L47: =+G32+M32 -> 333.130002
A54: TIPOLOGÍA | B54: COSTE | C54: PRECIO | D54: BENEFICIO | E54: MARGEN % | F54: PRECIO DESCUENTO | G54: BENEFICIO DESCUENTO | H54: MARGEN % DESCUENTO | L54: CARGA DE TRABAJO | M54: HORAS | N54: COSTE | O54: PRECIO
A55: INTERNO | B55: =G32 -> 333.130002 | C55: =+K32 -> 433.329 | D55: =C55-B55 -> 100.198998 | E55: =IF(C55>0,(C55-B55)/C55,"-") -> 0.2312307692 | L55: =A5 -> Jefatura de Línea | M55: =SUMIF(C:C,L55,E:E) -> 0 | N55: =SUMIF(C:C,L55,G:G) -> 0 | O55: =SUMIF(C:C,L55,K:K) -> 0
A56: EXTERNO | B56: =+M32 -> 0 | C56: =+O32 -> 0 | D56: 0 | E56: - | L56: Jefatura de Proyectos | M56: =SUMIF(C:C,L56,E:E) -> 6.6666 | N56: =SUMIF(C:C,L56,G:G) -> 333.130002 | O56: =SUMIF(C:C,L56,K:K) -> 433.329
A57: SUBTOTAL | B57: =SUM(B55:B56) -> 333.130002 | C57: =SUM(C55:C56) -> 433.329 | D57: =C57-B57 -> 100.198998 | E57: =IF(D57>0,D57/C57,"-") -> 0.2312307692 | F57: =R32 -> 433.329 | G57: =F57-B57 -> 100.198998 | H57: =IF(G57>0,G57/F57,"-") -> 0.2312307692 | L57: Administración | M57: =SUMIF(C:C,L57,E:E) -> 0 | N57: 0 | O57: =SUMIF(C:C,L57,K:K) -> 0
A58: HONORARIOS | B58: =SUM(M35:M37) -> 0 | C58: =SUM(O35:O37) -> 0 | D58: 0 | E58: - | L58: Diseño y Maquetación | M58: =SUMIF(C:C,L58,E:E) -> 0 | N58: 0 | O58: 0
A59: BECAS | B59: =M38 -> 0 | C59: =O38 -> 0 | D59: 0 | E59: - | L59: IT | M59: =SUMIF(C:C,L59,E:E) -> 0 | N59: 0 | O59: 0
A60: SUBTOTAL | B60: =SUM(B58:B59) -> 0 | C60: =SUM(C58:C59) -> 0 | D60: 0 | E60: =IF(D60>0,D60/C60,"-") -> - | F60: =+R34 -> 0 | G60: =F60-B60 -> 0 | H60: =IF(G60>0,G60/F60,"-") -> - | L60: Coordinación | M60: 0 | N60: =SUMIF(C:C,L60,G:G) -> 0 | O60: 0
A61: TOTAL | B61: =B57+B60 -> 333.130002 | C61: =C57+C60 -> 433.329 | D61: 100.198998 | E61: =IF(D61>0,D61/C61,"-") -> 0.2312307692 | F61: =+F57+F60 -> 433.329 | G61: =+G60+G57 -> 100.198998 | H61: =IF(G61>0,G61/F61,"-") -> 0.2312307692 | L61: Dirección | M61: =SUMIF(C:C,L61,E:E) -> 0 | N61: 0 | O61: 0
L62: KAM | M62: 0 | N62: 0 | O62: 0
L63: Marketing | M63: =SUMIF(C:C,L63,E:E) -> 0 | N63: =SUMIF(C:C,L63,G:G) -> 0 | O63: 0
L64: TOTAL | M64: =SUM(M55:M63) -> 6.6666 | N64: =SUM(N55:N63) -> 333.130002 | O64: =SUM(O55:O63) -> 433.329

Sheet México
A2: Nº PRESUPUESTO: | C2: Nº BRIEFING | E2: CLIENTE: | G2: =TODAY() -> 2019-06-28 | H2: Validez: 30 días
A4: COSTES INTERNOS | B4: INTERNO | C4: VENTA | E4: Margen 3as | F4: Mínimo 15% | H4: ESTUDIOS
A5: Jefatura de Línea | B5: =+Total!B5*20 -> 1103.8 | C5: =+Total!C5*20 -> 1700 | E5: General | F5: 0.25 | H5: Descuento
A6: Jefatura de Proyectos | B6: =+Total!B6*20 -> 999.4 | C6: =+Total!C6*20 -> 1300 | E6: Impresión | F6: 0.2308 | H6: Nº Investigadores
A7: Administración | B7: =+Total!B7*20 -> 985.8 | C7: =+Total!C7*20 -> 1100 | E7: Acreditación | F7: 0.92 | H7: DURACIÓN
A8: Diseño y Maquetación | B8: =+Total!B8*20 -> 1127.6 | C8: =+Total!C8*20 -> 1600 | E8: tipo 4
A9: IT | B9: =+Total!B9*20 -> 944.4 | C9: =+Total!C9*20 -> 1600 | E9: tipo 5
A10: Coordinación | B10: =+Total!B10*20 -> 1268.8 | C10: =+Total!C10*20 -> 1700 | E10: tipo 6
A11: Dirección | B11: =+Total!B11*20 -> 0 | C11: =+Total!C11*20 -> 3000 | E11: tipo 7 | H11: IVA | I11: 0.16
A12: KAM | B12: =+Total!B12*20 -> 0 | C12: =+Total!C12*20 -> 1600 | E12: tipo 8
A13: Marketing | B13: =+Total!B13*20 -> 0 | C13: =+Total!C13*20 -> 1500 | E13: tipo 9
A15: È | B15: È | D15: È | P15: È | Q15: È | R15: È
F16: SERVICIOS INTERNOS SANED | L16: SERVICIOS DE TERCERAS PARTES
A17: DESCRIPCIÓN | B17: UDS | C17: PERFIL | D17: HORAS | E17: HORA/ HOMBRE | F17: COSTE HORA/ HOMBRE | G17: TOTAL COSTE | H17: VALOR SANED | I17: TOTAL VALOR SANED | J17: PRECIO HORA/ HOMBRE | K17: GESTIÓN | L17: COSTE UNITARIO | M17: TOTAL COSTE | N17: PRECIO UNITARIO | O17: TOTAL | P17: PRECIO UNITARIO | Q17: TOTAL PROYECTO | R17: PRECIO ESPECIAL CLIENTE | S17: BENEFICIO | T17: MARGEN | U17: DTO APLICADO | V17: % DTO APLICADO | W17: BENEFICIO DESCUENTO | X17: MARGEN DESCUENTO
A18: DIAGNÓSTICO Y GESTIÓN INTEGRAL | G18: =SUM(G19:G21) -> 0 | K18: =SUM(K19:K21) -> 0 | M18: =SUM(M19:M21) -> 0 | O18: =SUM(O19:O21) -> 0 | Q18: =O18+K18 -> 0 | R18: =SUM(R19:R21) -> 0 | S18: =Q18-(M18+G18) -> 0 | T18: =IF(S18>0,S18/Q18,"-") -> - | U18: =+R18-Q18 -> 0 | V18: =IF(U18<0,1-(R18/Q18),"-") -> - | W18: =R18-(M18+G18) -> 0 | X18: =IF(R18>0,W18/R18,"-") -> -
F19: =SUMIF($A$5:$A$13,C19,$B$5:$B$13) -> 0 | G19: =F19*E19 -> 0 | H19: 0 | I19: =+H19*B19 -> 0 | J19: =SUMIF($A$5:$A$13,C19,$C$5:$C$13) -> 0 | K19: =(E19*J19)+I19 -> 0 | M19: =L19*B19 -> 0 | N19: =L19/(1-$G$5) -> 0 | O19: =N19*B19 -> 0 | P19: =+N19+J19+H19 -> 0 | Q19: 0 | R19: =+Q19 -> 0 | S19: =R19-(M19+G19) -> 0 | T19: - | U19: =+R19-Q19 -> 0 | V19: =IF(U19<0,1-(R19/Q19),"-") -> - | W19: 0 | X19: =IF(W19>0,W19/R19,"-") -> -
F20: =SUMIF($A$5:$A$13,C20,$B$5:$B$13) -> 0 | G20: =F20*E20 -> 0 | H20: 0 | I20: =+H20*B20 -> 0 | J20: =SUMIF($A$5:$A$13,C20,$C$5:$C$13) -> 0 | K20: =(E20*J20)+I20 -> 0 | M20: =L20*B20 -> 0 | N20: =L20/(1-$G$5) -> 0 | O20: =N20*B20 -> 0 | P20: =+N20+J20+H20 -> 0 | Q20: 0 | R20: =Q20 -> 0 | S20: =R20-(M20+G20) -> 0 | T20: - | U20: =+R20-Q20 -> 0 | V20: =IF(U20<0,1-(R20/Q20),"-") -> - | W20: 0 | X20: -
F21: =SUMIF($A$5:$A$13,C21,$B$5:$B$13) -> 0 | G21: =F21*E21 -> 0 | H21: 0 | I21: =+H21*B21 -> 0 | J21: =SUMIF($A$5:$A$13,C21,$C$5:$C$13) -> 0 | K21: =(E21*J21)+I21 -> 0 | M21: =L21*B21 -> 0 | N21: =L21/(1-$G$5) -> 0 | O21: =N21*B21 -> 0 | P21: =+N21+J21+H21 -> 0 | Q21: 0 | R21: =+Q21 -> 0 | S21: =Q21-(M21+G21) -> 0 | T21: - | U21: 0 | V21: - | W21: 0 | X21: -
A22: SERVICIOS | G22: =+G23+G26 -> 0 | K22: =+K23+K26 -> 0 | M22: =+M23+M26 -> 0 | O22: =+O23+O26 -> 0 | Q22: 0 | R22: =+R23+R26 -> 0 | S22: 0 | T22: - | U22: 0 | V22: - | W22: 0 | X22: -
A23: Subservicios | G23: =+G24+G25 -> 0 | K23: =+K24+K25 -> 0 | M23: =+M24+M25 -> 0 | O23: =+O24+O25 -> 0 | Q23: 0 | R23: =+R24+R25 -> 0 | S23: 0 | T23: - | U23: 0 | V23: - | W23: 0 | X23: -
F24: =SUMIF($A$5:$A$13,C24,$B$5:$B$13) -> 0 | G24: =F24*E24 -> 0 | H24: 0 | I24: =+H24*B24 -> 0 | J24: =SUMIF($A$5:$A$13,C24,$C$5:$C$13) -> 0 | K24: =(E24*J24)+I24 -> 0 | M24: =L24*B24 -> 0 | N24: =L24/(1-$G$5) -> 0 | O24: =N24*B24 -> 0 | P24: =+N24+J24+H24 -> 0 | Q24: 0 | R24: =Q24 -> 0 | S24: 0 | T24: - | U24: 0 | V24: - | W24: 0 | X24: -
F25: =SUMIF($A$5:$A$13,C25,$B$5:$B$13) -> 0 | G25: =F25*E25 -> 0 | H25: 0 | I25: =+H25*B25 -> 0 | J25: =SUMIF($A$5:$A$13,C25,$C$5:$C$13) -> 0 | K25: =(E25*J25)+I25 -> 0 | M25: =L25*B25 -> 0 | N25: =L25/(1-$G$5) -> 0 | O25: =N25*B25 -> 0 | P25: =+N25+J25+H25 -> 0 | Q25: 0 | R25: =Q25 -> 0 | S25: 0 | T25: - | U25: 0 | V25: - | W25: 0 | X25: -
G26: =+G27 -> 0 | K26: =+K27 -> 0 | M26: =+M27 -> 0 | O26: =+O27 -> 0 | Q26: 0 | R26: =+R27 -> 0 | S26: 0 | T26: - | U26: 0 | V26: - | W26: 0 | X26: -
F27: =SUMIF($A$5:$A$13,C27,$B$5:$B$13) -> 0 | G27: =F27*E27 -> 0 | H27: 0 | I27: =+H27*B27 -> 0 | J27: =SUMIF($A$5:$A$13,C27,$C$5:$C$13) -> 0 | K27: =(E27*J27)+I27 -> 0 | M27: =L27*B27 -> 0 | N27: =L27/(1-$G$5) -> 0 | O27: =N27*B27 -> 0 | P27: =+N27+J27+H27 -> 0 | Q27: 0 | R27: =Q27 -> 0 | S27: 0 | T27: - | U27: 0 | V27: - | W27: 0 | X27: -
A28: SERVICIOS 1 | G28: =SUM(G29:G31) -> 0 | K28: =SUM(K29:K31) -> 0 | M28: =SUM(M29:M31) -> 0 | O28: =SUM(O29:O31) -> 0 | Q28: 0 | R28: =SUM(R29:R31) -> 0 | S28: 0 | T28: - | U28: 0 | V28: - | W28: 0 | X28: -
F29: =SUMIF($A$5:$A$13,C29,$B$5:$B$13) -> 0 | G29: =F29*E29 -> 0 | H29: 0 | I29: =+H29*B294 -> 0 | J29: =SUMIF($A$5:$A$13,C29,$C$5:$C$13) -> 0 | K29: =(E29*J29)+I29 -> 0 | M29: =L29*B29 -> 0 | N29: =L29/(1-$G$5) -> 0 | O29: =N29*B29 -> 0 | P29: =+N29+J29+H29 -> 0 | Q29: 0 | R29: 0 | S29: 0 | T29: - | U29: 0 | V29: - | W29: 0 | X29: -
F30: =SUMIF($A$5:$A$13,C30,$B$5:$B$13) -> 0 | G30: =F30*E30 -> 0 | H30: 0 | I30: =+H30*B30 -> 0 | J30: =SUMIF($A$5:$A$13,C30,$C$5:$C$13) -> 0 | K30: =(E30*J30)+I30 -> 0 | M30: =L30*B30 -> 0 | N30: =L30/(1-$G$5) -> 0 | O30: =N30*B30 -> 0 | P30: =+N30+J30+H30 -> 0 | Q30: 0 | R30: 0 | S30: 0 | T30: - | U30: 0 | V30: - | W30: 0 | X30: -
F31: =SUMIF($A$5:$A$13,C31,$B$5:$B$13) -> 0 | G31: =F31*E31 -> 0 | H31: 0 | I31: =+H31*B31 -> 0 | J31: =SUMIF($A$5:$A$13,C31,$C$5:$C$13) -> 0 | K31: =(E31*J31)+I31 -> 0 | M31: =L31*B31 -> 0 | N31: =L31/(1-$G$5) -> 0 | O31: =N31*B31 -> 0 | P31: =+N31+J31+H31 -> 0 | Q31: 0 | R31: 0 | S31: 0 | T31: - | U31: 0 | V31: - | W31: 0 | X31: -
A32: TOTAL SERVICIOS | G32: =SUM(G18,G22,G28,G34) -> 0 | K32: =+K28+K22+K18 -> 0 | M32: =SUM(M18,M22,M28) -> 0 | O32: =+O28+O22+O18 -> 0 | Q32: =+O32+K32 -> 0 | R32: =+R28+R22+R18 -> 0 | S32: =Q32-L47 -> 0 | T32: =IF(S32>0,S32/Q32,"-") -> - | U32: =+R32-Q32 -> 0 | V32: - | W32: =R32-L47 -> 0 | X32: =IF(W32>0,W32/R32,"-") -> -
A34: HONORARIOS | M34: =SUM(M35:M39) -> 0 | O34: =SUM(O35:O38) -> 0 | Q34: =O34 -> 0 | R34: =SUM(R35:R38) -> 0 | S34: 0 | T34: - | U34: 0 | V34: - | W34: 0 | X34: -
A35: Autores | M35: =L35*B35 -> 0 | N35: =L35 -> 0 | O35: =M35 -> 0 | P35: =+N35 -> 0 | Q35: 0 | R35: 0 | S35: 0 | T35: - | U35: 0 | V35: - | W35: 0 | X35: -
A36: Coordinadores | M36: =L36*B36 -> 0 | N36: =L36 -> 0 | O36: =M36 -> 0 | P36: =+N36 -> 0 | Q36: =+O36 -> 0 | R36: =Q36 -> 0 | S36: 0 | T36: - | U36: 0 | V36: - | W36: 0 | X36: =IF(R36>0,W36/R36,"-") -> -
A37: Aval Sociedad | M37: =L37*B37 -> 0 | N37: =L37 -> 0 | O37: 0 | P37: 0 | Q37: 0 | R37: 0 | S37: 0 | T37: - | U37: 0 | V37: - | W37: 0 | X37: =IF(R37>0,W37/R37,"-") -> -
A38: Becas | M38: =L38*B38 -> 0 | N38: =L38 -> 0 | O38: 0 | P38: 0 | Q38: 0 | R38: 0 | S38: 0 | T38: - | U38: 0 | V38: - | W38: 0 | X38: =IF(R38>0,W38/R38,"-") -> -
P40: TOTAL BRUTO | Q40: =+Q32+Q34 -> 0 | R40: =+R32+R34 -> 0 | S40: =Q40-(L46+L45) -> 0 | T40: =IF(S40>0,S40/Q40,"-") -> - | U40: 0 | V40: - | W40: =R40-(L46+L45) -> 0 | X40: =IF(W40>0,W40/R40,"-") -> -
P41: IVA | Q41: =+Q40*I11 -> 0 | R41: =+R40*I11 -> 0
P42: Total Presupuesto | Q42: =+Q40+Q41 -> 0 | R42: =+R40+R41 -> 0
K45: COSTE INTERNO | L45: =+G32 -> 0
K46: COSTE EXTERNO | L46: =+M34+M32 -> 0
K47: TOTAL COSTE (SIN HONORARIOS) | L47: =+G32+M32 -> 0
